fUST/lending_fUST_20260404
["ID","MTS","AMOUNT","RATE_DAILY","PERIOD"]
[419661688,1775262647114,-631.980692,0.00024736,2]
[419661689,1775262647124,-631.980692,0.00024736,2]
[419661690,1775262647133,-631.980692,0.00024736,2]
[419661691,1775262647142,-726.199394,0.00024736,2]
[419661692,1775262647151,-726.199394,0.00024736,2]
[419661693,1775262647161,-726.199394,0.00024736,2]
[419661694,1775262647170,-726.199394,0.00024736,2]
[419661695,1775262647179,-162.0,0.00024804,3]
[419661696,1775262647188,-162.0,0.00024804,3]
[419661697,1775262647197,-1720.67471968,0.00024811,2]
[419661698,1775262647207,-151.0,0.00024916,2]
[419661699,1775262647216,-151.0,0.00024916,2]
[419661700,1775262647225,-195.777454,0.00024916,2]
[419661701,1775262647234,-151.0,0.00024916,2]
[419661702,1775262647243,-151.0,0.00024916,2]
[419661703,1775262647252,-246.892166,0.00024916,2]
[419661704,1775262647261,-246.892166,0.00024916,2]
[419661705,1775262647270,-151.0,0.00024916,2]
[419661706,1775262647279,-246.892166,0.00024916,2]
[419661707,1775262647288,-151.0,0.00024916,2]
[419661708,1775262647298,-246.892166,0.00024916,2]
[419661709,1775262647307,-225.600744,0.00024916,2]
[419661710,1775262647316,-2000.0,0.00024916,2]
[419661711,1775262647325,-2000.0,0.00024916,2]
[419661712,1775262647334,-2000.0,0.00024916,2]
[419661713,1775262647343,-2000.0,0.00024916,2]
[419661714,1775262647352,-234.78,0.000251,30]
[419661715,1775262647361,-162.0,0.00025124,3]
[419661716,1775262647371,-162.0,0.00025124,3]
[419661717,1775262647381,-151.0,0.00025183,2]
[419661718,1775262647390,-165.092616,0.00025183,2]
[419661719,1775262647399,-151.0,0.00025183,2]
[419661720,1775262647408,-151.0,0.00025183,2]
[419661721,1775262647418,-151.0,0.00025183,2]
[419661722,1775262647427,-151.0,0.00025183,2]
[419661723,1775262647435,-154.605,0.00025205,9]
[419661724,1775262647444,-250.0,0.000254,2]
[419661725,1775262647454,-250.0,0.000254,2]
[419661726,1775262647463,-250.0,0.000254,2]
[419661727,1775262647472,-250.0,0.000254,2]
[419661728,1775262647481,-250.0,0.000254,2]
[419661730,1775262647491,-250.0,0.000254,2]
[419661731,1775262647499,-250.0,0.000254,2]
[419661732,1775262647509,-250.0,0.000254,2]
[419661734,1775262647518,-245.7,0.000254,2]
[419661735,1775262647527,-17267.41358295,0.00025444,2]
[419661756,1775262647724,-5808.93866732,0.00025444,2]
[419661760,1775262647746,-75537.63358429,0.00025444,2]
[419663058,1775262690786,200.0,0.0003284,120]
[419663059,1775262697829,550.0,0.000273,120]
[419663065,1775262803968,1500.0,0.00027397,120]
[419663066,1775262810737,200.0,0.00028669,120]
[419663136,1775262976692,534.97551569,0.00034728,120]
[419663464,1775263843508,-966.53880659,0.00013599,2]
[419663466,1775263843518,-1000.0,0.00013699,2]
[419663468,1775263843528,-300.0,0.00013832,2]
[419663470,1775263843538,-300.0,0.00013832,2]
[419663472,1775263843547,-300.0,0.00013832,2]
[419663474,1775263843557,-300.0,0.00013832,2]
[419663476,1775263843567,-300.0,0.00013832,2]
[419663478,1775263843576,-300.0,0.00013832,2]
[419663480,1775263843586,-300.0,0.00013832,2]
[419663482,1775263843596,-300.0,0.00013832,2]
[419663484,1775263843605,-300.0,0.00013832,2]
[419663486,1775263843615,-300.0,0.00013832,2]
[419663488,1775263843625,-300.0,0.00013832,2]
[419663491,1775263843634,-300.0,0.00013832,2]
[419663493,1775263843644,-300.0,0.00013832,2]
[419663495,1775263843654,-300.0,0.00013832,2]
[419663497,1775263843664,-300.0,0.00013832,2]
[419663499,1775263843673,-600.0,0.00014108,2]
[419663501,1775263843683,-720.0,0.00015518,2]
[419663503,1775263843693,-864.0,0.0001707,2]
[419663505,1775263843702,-1000.0,0.00018777,2]
[419663507,1775263843712,-1000.0,0.00020655,2]
[419663509,1775263843722,-244.0,0.00020655,2]
[419663511,1775263843732,-500.0,0.00021427,2]
[419663513,1775263843741,-500.0,0.00021662,2]
[419663515,1775263843751,-500.0,0.00021662,2]
[419663518,1775263843761,-500.0,0.00021662,2]
[419663521,1775263843771,-1000.0,0.00021975,2]
[419663523,1775263843780,-1000.0,0.00022209,2]
[419663525,1775263843790,-1000.0,0.00022209,2]
[419663527,1775263843799,-1000.0,0.00022209,2]
[419663529,1775263843809,-1500.0,0.00022523,2]
[419663530,1775263843818,-1000.0,0.0002272,10]
[419663533,1775263843828,-492.0,0.0002272,10]
[419663535,1775263843838,-1500.0,0.00022757,2]
[419663537,1775263843848,-1500.0,0.00022757,2]
[419663539,1775263843858,-1500.0,0.00022757,2]
[419663540,1775263843867,-270.83333333,0.00023,2]
[419663542,1775263843876,-2000.0,0.00023071,2]
[419663544,1775263843886,-749.34,0.00023076,2]
[419663546,1775263843896,-749.34,0.00023076,2]
[419663549,1775263843907,-749.34,0.00023076,2]
[419663550,1775263843917,-749.34,0.00023076,2]
[419663553,1775263843927,-749.34,0.00023076,2]
[419663555,1775263843937,-749.34,0.00023076,2]
[419663556,1775263843947,-749.34,0.00023076,2]
[419663558,1775263843956,-749.34,0.00023076,2]
[419663560,1775263843966,-749.34,0.00023076,2]
[419663562,1775263843975,-749.34,0.00023076,2]
[419663564,1775263843984,-749.34,0.00023076,2]
[419663566,1775263843993,-749.34,0.00023076,2]
[419663568,1775263844002,-749.34,0.00023076,2]
[419663570,1775263844012,-893.27,0.00023076,2]
[419663573,1775263844022,-487.0,0.00023076,2]
[419663575,1775263844031,-487.0,0.00023076,2]
[419663577,1775263844041,-487.0,0.00023076,2]
[419663579,1775263844050,-487.0,0.00023076,2]
[419663581,1775263844060,-487.0,0.00023076,2]
[419663583,1775263844069,-487.0,0.00023076,2]
[419663585,1775263844079,-487.0,0.00023076,2]
[419663587,1775263844088,-487.0,0.00023076,2]
[419663589,1775263844098,-487.0,0.00023076,2]
[419663591,1775263844107,-487.0,0.00023076,2]
[419663593,1775263844116,-487.0,0.00023076,2]
[419663594,1775263844127,-849.16,0.00023076,2]
[419663596,1775263844136,-2000.0,0.00023305,2]
[419663598,1775263844145,-2000.0,0.00023305,2]
[419663600,1775263844155,-2000.0,0.00023305,2]
[419663603,1775263844165,-2500.0,0.00023619,2]
[419663605,1775263844175,-1500.0,0.00023853,2]
[419663607,1775263844186,-2008.02054357,0.00023853,2]
[419663609,1775263844195,-2500.0,0.00023853,2]
[419663611,1775263844204,-485.758,0.00024403,2]
[419663613,1775263844213,-200.0,0.00024403,2]
[419663615,1775263844223,-196.2850388,0.00024894,2]
[419663617,1775263844232,-196.2850388,0.00024894,2]
[419663619,1775263844242,-324.8365858,0.00024894,2]
[419663621,1775263844251,-1075.4216998,0.00024954,2]
[419663623,1775263844260,-265.39930585,0.00024992,2]
[419663625,1775263844271,-500.0,0.00024992,2]
[419663627,1775263844280,-356.38584402,0.00024992,2]
[419663629,1775263844289,-1000.0,0.00024993,10]
[419663631,1775263844299,-791.0,0.00024993,10]
[419663633,1775263844308,-168.114,0.00025344,9]
[419663635,1775263844318,-3840.22299276,0.00025344,2]
[419663637,1775263844328,-3953.0746173,0.00025351,2]
[419663639,1775263844337,-500.0,0.00025443,2]
[419663641,1775263844346,-500.0,0.00025443,2]
[419663643,1775263844356,-500.0,0.00025443,2]
[419663645,1775263844365,-500.0,0.00025443,2]
[419663647,1775263844374,-440.76213937,0.00025443,2]
[419663649,1775263844384,-500.0,0.00025443,2]
[419663651,1775263844393,-401.0115899,0.00025443,2]
[419663653,1775263844402,-500.0,0.00025443,2]
[419663655,1775263844412,-500.0,0.00025443,2]
[419663657,1775263844421,-500.0,0.00025443,2]
[419663659,1775263844431,-537802.15316232,0.00025444,2]
[419663890,1775263846603,-1880.39,0.00025434,3]
[419663892,1775263846612,-11771.37742367,0.00025444,2]
[419664966,1775263890591,200.0,0.00031922,120]
[419664972,1775263950453,200.0,0.00031056,120]
[419664981,1775264010456,200.0,0.00031899,120]
[419664982,1775264017346,1500.0,0.00027397,120]
[419665062,1775264070513,200.0,0.00027059,120]
[419665113,1775264310912,200.0,0.00028045,120]
[419665118,1775264430521,200.0,0.00030888,120]
[419665137,1775264490464,200.0,0.00032743,120]
[419665619,1775265008852,1046.429157,0.0003,120]
[419665719,1775265038463,-5000.0,0.00010296,2]
[419665720,1775265038472,-51101.51651873,0.000104,2]
[419665721,1775265038483,-300.0,0.00010607,2]
[419665722,1775265038492,-300.0,0.00010607,2]
[419665723,1775265038502,-300.0,0.00010607,2]
[419665724,1775265038512,-300.0,0.00010607,2]
[419665725,1775265038522,-300.0,0.00010607,2]
[419665727,1775265038532,-300.0,0.00010607,2]
[419665728,1775265038541,-300.0,0.00010607,2]
[419665729,1775265038551,-300.0,0.00010607,2]
[419665730,1775265038561,-300.0,0.00010607,2]
[419665732,1775265038570,-300.0,0.00010607,2]
[419665733,1775265038580,-300.0,0.00010607,2]
[419665734,1775265038589,-300.0,0.00010607,2]
[419665735,1775265038598,-300.0,0.00010607,2]
[419665736,1775265038608,-300.0,0.00010607,2]
[419665737,1775265038617,-300.0,0.00010607,2]
[419665738,1775265038627,-600.0,0.00010607,2]
[419665739,1775265038636,-427.90004183,0.00010618,2]
[419665740,1775265038646,-217.26884165,0.00010618,2]
[419665741,1775265038655,-720.0,0.00011668,2]
[419665742,1775265038665,-864.0,0.00012834,2]
[419665743,1775265038675,-1000.0,0.00013699,2]
[419665744,1775265038684,-615.0,0.00013699,2]
[419665745,1775265038693,-786.45929756,0.00014118,2]
[419665756,1775265043847,-213.54070244,0.00014118,2]
[419665757,1775265043858,-1000.0,0.0001553,2]
[419665758,1775265043868,-244.0,0.0001553,2]
[419665759,1775265043878,-1000.0,0.00017083,2]
[419665760,1775265043888,-492.0,0.00017083,2]
[419665761,1775265043899,-1000.0,0.00018791,2]
[419665762,1775265043909,-791.0,0.00018791,2]
[419665763,1775265043918,-253.0,0.00020643,2]
[419665764,1775265043928,-300.0,0.00020643,2]
[419665765,1775265043939,-300.0,0.00020643,2]
[419665766,1775265043949,-1200.0,0.00020643,2]
[419665767,1775265043959,-1000.0,0.0002067,2]
[419665768,1775265043969,-1000.0,0.0002067,2]
[419665769,1775265043979,-168.29920911,0.00020744,2]
[419665770,1775265043990,-1000.0,0.0002198,30]
[419665771,1775265043999,-500.0,0.00022,2]
[419665773,1775265044010,-170.0,0.00022,2]
[419665774,1775265044020,-176363.44373642,0.00022,2]
[419665842,1775265050563,-1263.697,0.00022,2]
[419665843,1775265075896,733.0,0.0003476,120]
[419665844,1775265075967,452.0,0.0003476,120]
[419665845,1775265076002,451.0,0.0003476,120]
[419665848,1775265232351,500.0,0.00027397,120]
[419665892,1775266210664,255.24572211,0.00034754,120]
[419665893,1775266210933,152.55057798,0.00034754,120]
[419665894,1775266215739,191.63760935,0.00034754,120]
[419665895,1775266218478,162.14735216,0.00034754,120]
[419665896,1775266223889,269.64452467,0.00034754,120]
[419665897,1775266225784,391.33259533,0.00034754,120]
[419665927,1775266232658,156.58598959,0.0003,120]
[419665930,1775266232677,-340.68475009,0.00012163,2]
[419666239,1775266241637,-2401.3373592,0.00012163,2]
[419666326,1775266243787,-2257.97789071,0.00012163,2]
[419666327,1775266243799,-1200.0,0.00012285,2]
[419666328,1775266243809,-3789.80238053,0.00012286,2]
[419666329,1775266243819,-300.0,0.00012309,2]
[419666330,1775266243829,-300.0,0.00013508,2]
[419666331,1775266243839,-494.0,0.00013514,2]
[419666332,1775266243848,-1000.0,0.00013699,2]
[419666333,1775266243858,-223.03436424,0.0001387,2]
[419666334,1775266244008,-76.96563576,0.0001387,2]
[419666335,1775266244019,-300.0,0.0001387,2]
[419666336,1775266244028,-300.0,0.0001387,2]
[419666337,1775266244038,-300.0,0.0001387,2]
[419666338,1775266244048,-300.0,0.0001387,2]
[419666339,1775266244058,-300.0,0.0001387,2]
[419666340,1775266244068,-300.0,0.0001387,2]
[419666341,1775266244078,-300.0,0.0001387,2]
[419666342,1775266244088,-300.0,0.0001387,2]
[419666343,1775266244097,-300.0,0.0001387,2]
[419666344,1775266244107,-300.0,0.0001387,2]
[419666345,1775266244117,-300.0,0.0001387,2]
[419666346,1775266244128,-300.0,0.0001387,2]
[419666347,1775266244137,-300.0,0.0001387,2]
[419666348,1775266244147,-300.0,0.0001387,2]
[419666349,1775266244158,-996.8064364,0.00017735,2]
[419666350,1775266244169,-1379.62603494,0.00018912,2]
[419666351,1775266244179,-500.0,0.00020783,2]
[419666352,1775266244189,-500.0,0.00020783,2]
[419666353,1775266244198,-500.0,0.00020871,2]
[419666354,1775266244209,-500.0,0.00020871,2]
[419666355,1775266244219,-500.0,0.00020871,2]
[419666356,1775266244229,-500.0,0.00020871,2]
[419666357,1775266244239,-500.0,0.00021163,2]
[419666358,1775266244249,-155.27427413,0.00021331,2]
[419666360,1775266244259,-1000.0,0.00021419,2]
[419666362,1775266244269,-1000.0,0.00021419,2]
[419666364,1775266244278,-1000.0,0.0002171,2]
[419666366,1775266244289,-1000.0,0.00021967,2]
[419666367,1775266244299,-233.4025758,0.00021967,2]
[419666368,1775266244311,-766.5974242,0.00021967,2]
[419666369,1775266244323,-180.62977449,0.00021987,2]
[419666370,1775266244332,-151.0,0.00021987,2]
[419666371,1775266244343,-151.0,0.00021987,2]
[419666372,1775266244352,-151.0,0.00021987,2]
[419666373,1775266244362,-151.0,0.00021987,2]
[419666374,1775266244371,-151.0,0.00021987,2]
[419666375,1775266244382,-151.0,0.00021987,2]
[419666376,1775266244391,-151.0,0.00021987,2]
[419666377,1775266244401,-151.0,0.00021987,2]
[419666378,1775266244410,-151.0,0.00021987,2]
[419666379,1775266244419,-151.0,0.00021987,2]
[419666380,1775266244429,-151.0,0.00021987,2]
[419666381,1775266244438,-151.0,0.00021987,2]
[419666382,1775266244447,-151.0,0.00021987,2]
[419666383,1775266244458,-151.0,0.00021987,2]
[419666384,1775266244468,-151.0,0.00021987,2]
[419666385,1775266244480,-151.0,0.00021987,2]
[419666386,1775266244490,-151.0,0.00021987,2]
[419666387,1775266244501,-151.0,0.00021987,2]
[419666388,1775266244511,-151.0,0.00021987,2]
[419666389,1775266244521,-151.0,0.00021987,2]
[419666390,1775266244531,-171.40296727,0.00021987,2]
[419666391,1775266244541,-1788.03,0.0002199,3]
[419666392,1775266244551,-1281.8,0.0002199,3]
[419666393,1775266244560,-640.9,0.0002199,3]
[419666394,1775266244569,-320.45,0.0002199,3]
[419666395,1775266244579,-160.23,0.0002199,3]
[419666396,1775266244589,-480.71,0.0002199,3]
[419666397,1775266244598,-500.0,0.00021998,2]
[419666398,1775266244608,-323.72141682,0.00021998,2]
[419666399,1775266244617,-500.0,0.00021998,2]
[419666400,1775266244627,-500.0,0.00021998,2]
[419666401,1775266244637,-215.91646739,0.00021998,2]
[419666402,1775266244646,-500.0,0.00021998,2]
[419666403,1775266244655,-348.10165867,0.00021998,2]
[419666404,1775266244664,-500.0,0.00021998,2]
[419666405,1775266244674,-500.0,0.00021998,2]
[419666406,1775266244684,-310.47235617,0.00021998,2]
[419666407,1775266244694,-500.0,0.00021998,2]
[419666408,1775266244703,-500.0,0.00021998,2]
[419666409,1775266244713,-500.0,0.00021998,2]
[419666410,1775266244723,-500.0,0.00021998,2]
[419666411,1775266244732,-500.0,0.00021998,2]
[419666412,1775266244742,-500.0,0.00021998,2]
[419666413,1775266244751,-500.0,0.00021998,2]
[419666414,1775266244761,-500.0,0.00021998,2]
[419666415,1775266244771,-500.0,0.00021998,2]
[419666416,1775266244781,-500.0,0.00021998,2]
[419666417,1775266244791,-500.0,0.00021999,2]
[419666418,1775266244802,-286.09714991,0.00021999,2]
[419666419,1775266244813,-500.0,0.00021999,2]
[419666420,1775266244824,-500.0,0.00021999,2]
[419666421,1775266244834,-500.0,0.00021999,2]
[419666422,1775266244844,-500.0,0.00021999,2]
[419666423,1775266244855,-500.0,0.00021999,2]
[419666424,1775266244865,-500.0,0.00021999,2]
[419666425,1775266244876,-500.0,0.00021999,2]
[419666426,1775266244886,-190.32321388,0.00021999,2]
[419666427,1775266244896,-500.0,0.00021999,2]
[419666428,1775266244906,-500.0,0.00021999,2]
[419666429,1775266244916,-500.0,0.00021999,2]
[419666430,1775266244927,-500.0,0.00021999,2]
[419666431,1775266244936,-500.0,0.00021999,2]
[419666432,1775266244946,-500.0,0.00021999,2]
[419666433,1775266244958,-500.0,0.00021999,2]
[419666434,1775266244969,-86291.73768795,0.00022,2]
[419666435,1775266244985,-2932.7265385,0.00022,2]
[419666436,1775266245015,228.59649683,0.00034754,120]
[419666437,1775266245052,208.0652005,0.00034754,120]
[419666448,1775266247340,-24368.94900374,0.00022,2]
[419666449,1775266247352,-3535.089,0.00022,2]
[419666450,1775266255947,3270.0,0.00034754,120]
[419666451,1775266258602,158.00713501,0.00034754,120]
[419666462,1775266263282,234.08810066,0.00034754,120]
[419666468,1775266276463,163.25998861,0.00034754,120]
[419666469,1775266285330,298.61271084,0.00034754,120]
[419666470,1775266286040,580.16873076,0.00034754,120]
[419666471,1775266298385,160.38091404,0.00034754,120]
[419666472,1775266299569,381.95470782,0.00034754,120]
[419666473,1775266314653,281.12408427,0.00034754,120]
[419666474,1775266350067,2491.0,0.00034754,120]
[419666476,1775266379187,618.45032026,0.00034754,120]
[419666477,1775266389671,209.53310208,0.00034754,120]
[419666478,1775266392917,160.14572428,0.00034754,120]
[419666479,1775266396603,211.0,0.0003,120]
[419666480,1775266399581,500.0,0.00034754,120]
[419666481,1775266399801,500.0,0.00034754,120]
[419666482,1775266400042,500.0,0.00034754,120]
[419666483,1775266400266,500.0,0.00034754,120]
[419666484,1775266400483,217.76038022,0.00034754,120]
[419666485,1775266411528,162.32425992,0.00034754,120]
[419666486,1775266420590,334.5876584,0.00034754,120]
[419666487,1775266422349,620.83280816,0.00034754,120]
[419666488,1775266434323,156.0537972,0.00034754,120]
[419666489,1775266537511,161.01528333,0.00034751,120]
[419666490,1775266607919,411.15,0.00034751,120]
[419666491,1775266689036,168.73827607,0.00034751,120]
[419666492,1775266706349,207.45,0.00034751,120]
[419666515,1775266853484,304.18,0.00034751,120]
[419666516,1775267019232,157.58255421,0.00034753,120]
[419666537,1775267270780,764.0,0.00034753,120]
[419666539,1775267350315,331.8,0.00034753,120]
[419666566,1775267432714,-1000.0,0.00013699,2]
[419666568,1775267432724,-297.01723482,0.00019075,2]
[419666571,1775267432747,-2.98276518,0.00019075,2]
[419666573,1775267432758,-300.0,0.00019177,2]
[419666575,1775267432768,-300.0,0.00019177,2]
[419666577,1775267432779,-300.0,0.00019177,2]
[419666579,1775267432789,-300.0,0.00019177,2]
[419666580,1775267432799,-1200.0,0.00019177,2]
[419666581,1775267432809,-1000.0,0.00019178,2]
[419666582,1775267432819,-1000.0,0.00019178,2]
[419666583,1775267432829,-1725.62136526,0.00019461,2]
[419666584,1775267432838,-300.0,0.00019561,2]
[419666585,1775267432848,-300.0,0.00019561,2]
[419666586,1775267432858,-300.0,0.00019561,2]
[419666587,1775267432868,-28.58637712,0.00019561,2]
[419666617,1775267438905,-798.38579127,0.00019178,2]
[419666618,1775267438917,-201.61420873,0.00019178,2]
[419666619,1775267438927,-1000.0,0.00019178,2]
[419666620,1775267438936,-1000.0,0.00019178,2]
[419666621,1775267438946,-1000.0,0.00019178,2]
[419666622,1775267438956,-1000.0,0.00019178,2]
[419666623,1775267438966,-1000.0,0.00019178,2]
[419666624,1775267438975,-1000.0,0.00019178,2]
[419666625,1775267438986,-271.41362288,0.00019561,2]
[419666626,1775267438996,-300.0,0.00019561,2]
[419666627,1775267439006,-300.0,0.00019561,2]
[419666628,1775267439016,-300.0,0.00019561,2]
[419666629,1775267439026,-300.0,0.00019561,2]
[419666630,1775267439036,-300.0,0.00019561,2]
[419666631,1775267439046,-300.0,0.00019561,2]
[419666632,1775267439056,-300.0,0.00019561,2]
[419666633,1775267439069,-300.0,0.00019561,2]
[419666634,1775267439079,-300.0,0.00019561,2]
[419666635,1775267439089,-300.0,0.00019561,2]
[419666636,1775267439099,-300.0,0.00019561,2]
[419666637,1775267439108,-600.0,0.00019561,2]
[419666638,1775267439118,-180.39822699,0.00019733,2]
[419666639,1775267439128,-500.0,0.0002,2]
[419666640,1775267439138,-302.54247714,0.00020826,2]
[419666641,1775267439148,-544.57645884,0.00020826,2]
[419666642,1775267439158,-250.0,0.00020899,2]
[419666643,1775267439167,-154.0,0.000209,2]
[419666644,1775267439179,-152.0,0.000209,2]
[419666645,1775267439189,-159.0,0.000209,2]
[419666646,1775267439198,-153.0,0.000209,2]
[419666647,1775267439207,-271.29561307,0.000209,2]
[419666648,1775267439216,-1725.6213652,0.00020952,2]
[419666649,1775267439227,-241.0,0.00020983,2]
[419666650,1775267439238,-1484.0,0.00021,2]
[419666651,1775267439247,-500.73477953,0.00021057,2]
[419666652,1775267439256,-501.25728089,0.00021057,2]
[419666653,1775267439277,-500.70119338,0.00021057,2]
[419666654,1775267439288,-503.59353237,0.00021057,2]
[419666655,1775267439299,-500.0,0.00021057,2]
[419666656,1775267439309,-500.0,0.00021057,2]
[419666657,1775267439318,-234.54531926,0.00021057,2]
[419666658,1775267439326,-49.34001988,0.00021057,2]
[419666659,1775267439340,-450.65998012,0.00021057,2]
[419666660,1775267439351,-76.52975782,0.00021151,2]
[419666664,1775267441661,-1000.0,0.00019178,2]
[419666665,1775267441671,-891.60616901,0.00021151,2]
[419666666,1775267441681,-500.0,0.00021364,2]
[419666667,1775267441691,-720.0,0.00021517,10]
[419666668,1775267441701,-1014.14205254,0.00021605,2]
[419666669,1775267441712,-1012.05697134,0.00021605,2]
[419666670,1775267441722,-1016.2353692,0.00021605,2]
[419666671,1775267441732,-154.79957764,0.000219,2]
[419666672,1775267441741,-167.28960103,0.000219,2]
[419666673,1775267441752,-159.0,0.000219,2]
[419666674,1775267441763,-153.0,0.000219,2]
[419666675,1775267441774,-2385.15772029,0.000219,2]
[419666676,1775267441783,-1000.0,0.00021912,2]
[419666677,1775267441793,-150.16127228,0.00021918,2]
[419666678,1775267441804,-360.78283786,0.00021922,2]
[419666679,1775267441813,-649.40910814,0.00021922,2]
[419666680,1775267441823,-265.47999566,0.00021922,2]
[419666699,1775267444280,-499.48143251,0.00019178,2]
[419666700,1775267444295,-500.51856749,0.00019178,2]
[419666701,1775267444306,-1000.0,0.00019178,2]
[419666702,1775267444458,-1000.0,0.00019178,2]
[419666703,1775267444470,-889.02508548,0.00021922,2]
[419666704,1775267444480,-1803.91418929,0.00021922,2]
[419666705,1775267444490,-2597.63643257,0.00021922,2]
[419666706,1775267444500,-2063.89,0.0002199,3]
[419666707,1775267444510,-1031.95,0.0002199,3]
[419666708,1775267444520,-515.97,0.0002199,3]
[419666709,1775267444529,-257.99,0.0002199,3]
[419666711,1775267444539,-773.98,0.0002199,3]
[419666713,1775267444548,-1954.0716467,0.00021999,2]
[419666715,1775267444557,-2700.1425983,0.00021999,2]
[419666717,1775267444566,-307.7634798,0.00021999,2]
[419666718,1775267444576,-160.91579608,0.00021999,2]
[419666719,1775267444586,-500.0,0.00021999,2]
[419666720,1775267444595,-500.0,0.00021999,2]
[419666721,1775267444605,-350.91226886,0.00021999,2]
[419666722,1775267444614,-527.21804789,0.00021999,2]
[419666723,1775267444624,-500.0,0.00021999,2]
[419666724,1775267444634,-500.0,0.00021999,2]
[419666725,1775267444643,-500.0,0.00021999,2]
[419666726,1775267444653,-500.0,0.00021999,2]
[419666727,1775267444663,-500.0,0.00021999,2]
[419666728,1775267444672,-500.0,0.00021999,2]
[419666729,1775267444681,-500.0,0.00021999,2]
[419666730,1775267444690,-500.0,0.00021999,2]
[419666731,1775267444699,-500.0,0.00021999,2]
[419666732,1775267444708,-500.0,0.00021999,2]
[419666733,1775267444717,-524.85204639,0.00021999,2]
[419666734,1775267444726,-500.0,0.00021999,2]
[419666735,1775267444735,-505.10164969,0.00021999,2]
[419666736,1775267444744,-556.0094013,0.00021999,2]
[419666737,1775267444754,-250.0,0.00022,4]
[419666738,1775267444762,-58563.35334793,0.00022,2]
[419666739,1775267444774,-775.45110368,0.00022,2]
[419666744,1775267447169,-378.34606569,0.00019178,2]
[419666745,1775267447299,-621.65393431,0.00019178,2]
[419666746,1775267447309,-1000.0,0.00019178,2]
[419666747,1775267447318,-1000.0,0.00019178,2]
[419666748,1775267447328,-1000.0,0.00019178,2]
[419666749,1775267447338,-32729.07902709,0.00022,2]
[419666750,1775267447347,-167.4116465,0.00022,2]
[419666751,1775267447357,-162.37600455,0.00022,4]
[419666752,1775267447367,-170.0,0.00022,2]
[419666753,1775267447376,-3535.671811,0.00022265,2]
[419666754,1775267447385,-1725.6213652,0.00022444,2]
[419666755,1775267447395,-1500.0,0.0002246,2]
[419666756,1775267447404,-226.26,0.00022466,2]
[419666757,1775267447414,-200.0,0.00022862,2]
[419666758,1775267447423,-223.52,0.00022862,2]
[419666759,1775267447432,-200.0,0.00022862,2]
[419666760,1775267447442,-171.75082034,0.000229,2]
[419666761,1775267447451,-157.15309542,0.000229,2]
[419666762,1775267447460,-679.12014297,0.00023,2]
[419666763,1775267447470,-270.83333333,0.00023,2]
[419666764,1775267447479,-608.42220239,0.00023004,30]
[419666765,1775267447489,-2000.0,0.00023008,2]
[419666766,1775267447498,-171.0,0.00023014,7]
[419666767,1775267447507,-242.52556068,0.00023076,2]
[419666768,1775267447517,-332.9550056,0.00023076,2]
[419666769,1775267447526,-152.3065361,0.00023127,2]
[419666770,1775267447536,-151.0,0.00023243,2]
[419666771,1775267447545,-4127.78,0.0002336,3]